Cogmind - Beta 16 @@@ ROGUE MODE // 2026.01.01 @ 12:21:05 Player: celerysam Result: Destroyed by Y-45 Defender with Beam Rifle Performance ------------- Evolutions (2) 1000 Regions Visited (4) 800 Robots Destroyed (52) 260 Value Destroyed (1570) 1570 Prototype IDs (16) 320 Alien Tech Used (0) 0 Bonus (276) 276 TOTAL SCORE: 4226 Bonus ------- Follower Combat Kills 276 Cogmind --------- Core Integrity 0/550 Matter 300/300 Energy 200/200 System Corruption 4% Temperature Cool (18) Movement Treading (320) Ox2 Location -8/Storage Parts ------- > --- POWER (2) -------- Subdweller Power Source > --- PROPULSION (3) --- Light Treads Light Treads > --- UTILITY (3) ------ Huge Storage Unit > --- WEAPON (3) ------- (None) > --- INVENTORY (25) --- Advanced Treads Huge Storage Unit High-capacity Battery (250) Improved Signal Interpreter Improved Terrain Scan Processor Seismic Detector Reaction Control System Reaction Control System Propulsion Shielding Improved Propulsion Shielding Scrap Shield Authchip [R/Combat] Drone Bay (2/2) Drone Bay (2/2) Drone Bay (2/2) Grenade Launcher Peak State ------------ > --- POWER ------------ Light Nuclear Core Meta Core > --- PROPULSION ------- Advanced Treads Compact Wheel Compact Wheel Compact Wheel > --- UTILITY ---------- Huge Storage Unit Improved Terrain Scanner Makeshift Light Armor Plating > --- WEAPON ----------- Makeshift Laser Improved Assault Rifle Assault Cannon > --- INVENTORY -------- Improved Ion Engine Subdweller Power Source Light Treads Light Treads Wheel Wheel Compact Wheel Heat Sink Huge Storage Unit High-capacity Battery Improved Signal Interpreter Seismic Detector Transport Network Coupler Reaction Control System Propulsion Shielding Light Armor Plating Improved Light Armor Plating Improved Light Armor Plating Scrap Shield Riot Gun Subdweller Laser Field Laser Subdweller Beam Cannon Grenade Launcher [Rating: 44] Favorites ----------- Power Meta Core Engine Ion Engine Power Core Meta Core Propulsion Compact Wheel Treads Light Treads Leg Aluminum Leg Wheel Compact Wheel Utility Huge Storage Unit Device Improved Terrain Scanner Storage Huge Storage Unit Processor Transport Network Coupler Protection Light Armor Plating Weapon Light Cannon Energy Gun Medium Laser Energy Cannon Heavy Particle Cannon Ballistic Gun Battle Rifle Ballistic Cannon Light Cannon Launcher Grenade Launcher Special Weapon Mining Laser Build | -11 -10 -10 -8 -8 ------- Run | Yrd Mat Sub Mat Sto Slots Evolved 4 | . . . 4 . Power 1 | . . . 1 . Propulsion 1 | . . . 1 . Utility 1 | . . . 1 . Weapon 1 | . . . 1 . Parts Attached 60 | 6 14 11 10 19 Power 7 | 1 1 1 1 3 Engine 5 | 1 1 . . 3 Core 2 | . . 1 1 . Reactor . | . . . . . Propulsion 17 | 2 4 2 5 4 Treads 3 | . . . 2 1 Leg 2 | 2 . . . . Wheel 12 | . 4 2 3 3 Hover . | . . . . . Flight . | . . . . . Utility 16 | 1 5 4 1 5 Device 5 | . 1 1 . 3 Storage 4 | 1 3 . . . Processor 1 | . . . . 1 Hackware . | . . . . . Protection 6 | . 1 3 1 1 Artifact . | . . . . . Weapon 20 | 2 4 4 3 7 Energy Gun 9 | . 2 1 1 5 Energy Cannon 2 | . . . . 2 Ballistic Gun 4 | 2 . 1 1 . Ballistic Cannon 3 | . 2 . 1 . Launcher 1 | . . 1 . . Special Weapon 1 | . . 1 . . Impact Weapon . | . . . . . Slashing Weapon . | . . . . . Piercing Weapon . | . . . . . Special Melee Weapon . | . . . . . Unidentified Prototypes 2 | . . . . 2 Parts Lost 30 | . 1 5 6 18 Power 5 | . 1 . 1 3 Propulsion 8 | . . 1 1 6 Utility 7 | . . 1 2 4 Weapon 10 | . . 3 2 5 Highest Loss Streak 11 | . 1 3 5 11 To Critical Strikes . | . . . . . Average Backups 21 | 4 16 23 22 22 Power 1 | . 1 1 1 1 Propulsion 7 | 3 7 7 5 5 Utility 8 | . 4 8 10 13 Weapon 4 | . 3 4 5 2 Tool/Special . | . . . . . Unused Backups 16 | . 3 2 1 10 Power 1 | . 1 . . . Propulsion . | . . . . . Utility 11 | . 1 . . 10 Weapon 4 | . 1 2 1 . Tool/Special . | . . . . . Average Slot Usage (%) 90 | . 97 90 89 77 Engine 5 | . 13 2 . 5 Core 6 | . . 8 12 4 Leg 1 | . 4 . . . Wheel 21 | . 23 22 19 19 Device 6 | . 8 6 7 5 Storage 11 | . 14 11 8 8 Protection 8 | . 2 11 8 8 Energy Gun 7 | . 11 2 7 22 Ballistic Gun 7 | . 12 6 8 . Ballistic Cannon 10 | . 3 16 6 . Special Weapon 1 | . . 2 . . Peak Build Rating 44 | 6 9 29 44 39 Average Rating 22 | 3 8 24 38 29 On Entrance 14 | . 6 9 26 33 Avg Prop Armor Cover (%) 8 | . . . 8 9 Naked Turns . | . . . . . Heaviest Build 107 | 10 94 98 107 107 Greatest Support 48 | 20 32 32 48 48 Greatest Overweight (x) 9 | . 3 5 3 9 Average Overweight (x) 2 | . 1 2 2 2 Largest Inventory Capacity 25 | 8 25 25 25 25 Average Capacity 23 | 6 21 25 25 25 Most Carried 25 | 6 25 25 25 25 Average Carried 22 | 4 17 24 23 23 Final Capacity 25 | 8 25 25 25 25 Final Carried 25 | 6 25 24 22 17 Class Distribution -------------------- 50% | Mutant 46% | Tank Dominant Class ---------------- Mutant | -10/Materials Tank | -10/Subcaves Tank | -8/Materials Tank | -8/Storage Resources | -11 -10 -10 -8 -8 ----------- Run | Yrd Mat Sub Mat Sto Matter Collected 1597 | 221 257 602 96 421 Remotely . | . . . . . Salvage Created 1898 | . 455 396 266 781 Parts 117 | . 25 30 15 47 Haulers Intercepted 3 | . 2 . . 1 Recyclers Shooed 2 | . 2 . . . Parts Field Recycled . | . . . . . Retrieved Matter . | . . . . . Parts Self-Destructed 18 | . . 18 . . Prevented . | . . . . . Parts Restored . | . . . . . Kills | -11 -10 -10 -8 -8 ------- Run | Yrd Mat Sub Mat Sto Combat Hostiles Destroyed 44 | . 9 14 5 16 Guns 36 | . 9 7 4 16 Cannons 8 | . . 7 1 . Classes Destroyed 12 | . 5 2 . 5 Builder 1 | . . . . 1 Hauler 3 | . 2 . . 1 Recycler 1 | . 1 . . . Mechanic 1 | . . . . 1 Drone 9 | . . . . 9 Watcher 2 | . 1 . 1 . Swarmer 13 | . 3 5 . 5 Grunt 13 | . 6 . 2 5 Brawler 2 | . . . . 2 Duelist 1 | . . . . 1 Sentry 7 | . . 1 3 3 Subdweller 8 | . . 8 . . Best Kill Streak 5 | . 4 4 3 5 Combat Bots Only 5 | . 3 4 3 5 Max Kills in Single Turn 10 | . 1 1 1 10 Gunslinging . | . . . . . Exploded . | . . . . . Melee . | . . . . . Uniques/NPCs Destroyed . | . . . . . Combat | -11 -10 -10 -8 -8 -------- Run | Yrd Mat Sub Mat Sto Hostile Shots Fired 381 | . 67 68 68 178 Missed 95 | . 17 18 14 46 Hits 286 | . 50 50 54 132 Melee 3 | . . . . 3 Projectile 283 | . 50 50 54 129 Critical Strikes 13 | . . 4 3 6 Damage Taken 4269 | . 587 899 825 1958 Core 797 | . 109 138 121 429 Absorbed by Shields . | . . . . . Core Remaining (%) 50 | 100 . 1 . . Volleys Fired 234 | . 68 95 21 50 Largest 3 | . 2 3 3 3 Hottest 190 | . 70 100 123 190 Shots Fired 481 | . 136 168 59 118 Gun 334 | . 126 56 38 114 Cannon 113 | . 10 78 21 4 Launcher 3 | . . 3 . . Special 31 | . . 31 . . Kinetic 244 | . 85 117 42 . Thermal 222 | . 51 48 17 106 Explosive 3 | . . 3 . . Electromagnetic 12 | . . . . 12 Robot Hit Streak 12 | . 8 12 11 7 Robot Miss Streak 8 | . 8 2 4 3 Penetration Max . | . . . . . Secondary Targets 6 | . 3 . . 3 Max Gunslinging Chain 1 | . 1 . . 1 Shots Hit Robots 229 | . 79 54 36 60 Core Hits 102 | . 29 22 9 42 Critical Kills . | . . . . . Critical Parts Destroyed . | . . . . . Critical Strikes 9 | . 1 2 2 4 Burn 7 | . 1 1 1 4 Blast 2 | . . 1 1 . Melee Attacks . | . . . . . Impact . | . . . . . Slashing . | . . . . . Piercing . | . . . . . Sneak Attacks . | . . . . . Combat Hostiles . | . . . . . Follow-up Attacks . | . . . . . Damage Inflicted 4396 | . 776 887 690 2043 Guns 3015 | . 758 471 449 1337 Cannons 680 | . 18 396 241 25 Explosions 681 | . . 20 . 661 Melee . | . . . . . Ramming 20 | . . . . 20 Kinetic 1610 | . 439 699 472 . Thermal 2032 | . 337 168 218 1309 Explosive 506 | . . 20 . 486 Electromagnetic 228 | . . . . 228 Impact . | . . . . . Slashing . | . . . . . Piercing . | . . . . . Highest Corruption 4 | . . . . 4 Average Corruption 1 | . . . . 1 Corruption Purged . | . . . . . Corruption Blocked . | . . . . . Effects 4 | . . . . 4 Message Errors 2 | . . . . 2 Matter Fused 1 | . . . . 1 Data Loss (minor) 1 | . . . . 1 Overload Shots . | . . . . . Overflow Damage 25 | . . . 7 18 Projectiles 7 | . . . 7 . Explosions 18 | . . . . 18 Melee . | . . . . . Knockbacks 3 | . 1 2 . . Impact . | . . . . . Kinetic 3 | . 1 2 . . Secondary . | . . . . . Self-Inflicted Damage 136 | . . . . 136 Shots 2 | . . . . 2 Rammed 3 | . . . . 3 Targets Rammed 3 | . . . . 3 Kicked . | . . . . . Crushed . | . . . . . Highest Temperature 567 | . 161 387 567 524 Average Temperature 141 | . 23 85 246 166 Received Heat Transfer 2129 | . 288 734 432 675 Effects 26 | . . . 18 8 Shutdowns 10 | . . . 7 3 Energy Bleed 3 | . . . 2 1 Interference 7 | . . . 6 1 Matter Decay 1 | . . . . 1 Short Circuit 1 | . . . . 1 Damage (minor) 4 | . . . 3 1 Siege Activations . | . . . . . Martial Activations . | . . . . . Shielding Activations . | . . . . . Robots Disrupted . | . . . . . Combat Hostiles . | . . . . . Robots Corrupted . | . . . . . Combat Hostiles . | . . . . . Parts Fried . | . . . . . Impact Corruptions . | . . . . . Robots Melted . | . . . . . Combat Hostiles . | . . . . . Parts Melted 11 | . 2 5 . 4 Heat Transferred 4267 | . 1073 444 555 2195 Parts Sabotaged . | . . . . . Parts Stolen . | . . . . . Parts Stripped . | . . . . . Power Chain Reactions 1 | . . . . 1 Alert | -11 -10 -10 -8 -8 ------- Run | Yrd Mat Sub Mat Sto Maximum Alert Level 1 | . . . . 1 Low Security (%) 80 | 100 100 . 100 34 Level 1 19 | . . . . 65 Level 2 . | . . . . . Level 3 . | . . . . . Level 4 . | . . . . . Level 5 . | . . . . . High Security . | . . . . . Max Security . | . . . . . Peak Influence 285 | . 69 . 83 285 Initial 8 | . . . . 8 Average 66 | . 17 . 11 184 Influence Increases 1473 | . 295 180 142 856 Destroy 0b10 Robot/C 880 | . 180 120 100 480 Destroy 0b10 Robot/NC 55 | . 20 . 5 30 Destroy Leader 192 | . 46 . 32 114 Allied During Kill 91 | . . . . 91 Successful Hack 25 | . 18 . . 7 Disable Machine 75 | . . . . 75 Destroy Structure 20 | . 1 . 5 14 Partial Spotted 15 | . 15 . . . Lose Combat Pursuer 120 | . 15 60 . 45 Influence Decreases 1226 | . 295 180 121 630 Entered New Map 13 | . . . . 13 Time Decay 798 | . 295 170 71 262 Lost Part 240 | . . 10 50 180 Lost Ally 175 | . . . . 175 Squads Dispatched 12 | . 2 . 1 9 Investigation 2 | . . . . 2 Extermination . | . . . . . Reinforcement 4 | . 2 . . 2 Assault 2 | . . . . 2 Garrison 4 | . . . 1 3 Intercept . | . . . . . Searches Triggered . | . . . . . Construction Impeded . | . . . . . Haulers Reinforced . | . . . . . Active Scanning Responses . | . . . . . Cargo Convoy Interrupts . | . . . . . Stealth | -11 -10 -10 -8 -8 --------- Run | Yrd Mat Sub Mat Sto Distress Signals 4 | . 1 . 2 1 Communications Jammed . | . . . . . Distress Signals . | . . . . . Times Spotted 92 | . 19 17 16 40 Peak Tracking Total 10 | . 3 6 10 9 Tactical Retreats 5 | . 1 2 . 2 Traps | -11 -10 -10 -8 -8 ------- Run | Yrd Mat Sub Mat Sto Traps Triggered 4 | . . 1 . 3 Indirectly . | . . . . . Trap Hack Attempts . | . . . . . Triggered . | . . . . . Disarmed . | . . . . . Reprogrammed . | . . . . . Reused . | . . . . . Traps Extracted . | . . . . . Installed . | . . . . . Triggered . | . . . . . Machines | -11 -10 -10 -8 -8 ---------- Run | Yrd Mat Sub Mat Sto Machines Disabled 6 | . . 1 . 5 Max in Single Turn 2 | . . 1 . 2 Machines Repaired . | . . . . . Machines Dismantled . | . . . . . Machines Sabotaged . | . . . . . Overloaded Fab Kills . | . . . . . Hacking | -11 -10 -10 -8 -8 --------- Run | Yrd Mat Sub Mat Sto Machines Accessed 12 | . 5 2 1 4 Terminals 8 | . 4 . . 4 Fabricators . | . . . . . Repair Stations . | . . . . . Recycling Units 1 | . 1 . . . Scanalyzers 1 | . . . 1 . Garrison Access . | . . . . . Total Hacks 26 | . 8 6 4 8 Successful 20 | . 8 6 4 2 Failed 6 | . . . . 6 Catastrophic 1 | . . . . 1 Database Lockouts . | . . . . . Manual 4 | . 3 . . 1 Terminals 14 | . 6 . . 8 Fabricators . | . . . . . Repair Stations . | . . . . . Recycling Units 2 | . 2 . . . Scanalyzers 4 | . . . 4 . Garrison Access . | . . . . . Terminal Hacks 11 | . 3 6 . 2 Record 5 | . . 5 . . Prototype ID Bank 1 | . 1 . . . Open Door 2 | . . . . 2 Alert Level 1 | . 1 . . . Locate Traps 1 | . 1 . . . Proto ID Catalog 1 | . . 1 . . Fabricator Hacks . | . . . . . Repair Station Hacks . | . . . . . Recycling Unit Hacks 2 | . 2 . . . Report Inventory 1 | . 1 . . . Retrieve Components 1 | . 1 . . . Scanalyzer 4 | . . . 4 . Retrieve Study 4 | . . . 4 . Garrison Access Hacks . | . . . . . Unauthorized Hacks 3 | . 3 . . . Terminals 3 | . 3 . . . Assimilate 2 | . 2 . . . Botnet 1 | . 1 . . . Fabricators . | . . . . . Repair Stations . | . . . . . Recycling Units . | . . . . . Scanalyzers . | . . . . . Garrison Access . | . . . . . Data Cores Recovered 1 | . . . . 1 Used . | . . . . . Hacking Detections 5 | . 1 . 1 3 Full Trace Events 1 | . . . . 1 Feedback Events . | . . . . . Feedback Blocked . | . . . . . Robot Schematics Acquired . | . . . . . Robots Built . | . . . . . Authchips . | . . . . . Time . | . . . . . Total Robot Build Rating . | . . . . . Part Schematics Acquired . | . . . . . Parts Built . | . . . . . Authchips . | . . . . . Time . | . . . . . Total Part Build Rating . | . . . . . Part Studies Acquired 4 | . . . 4 . Parts Repaired . | . . . . . Time . | . . . . . Parts Recycled . | . . . . . Recycled Matter . | . . . . . Retrieved Matter . | . . . . . Retrieved Components 6 | . 6 . . . Parts Scanalyzed . | . . . . . Part Schematics Acquired . | . . . . . Parts Damaged . | . . . . . Bothacking | -11 -10 -10 -8 -8 ------------ Run | Yrd Mat Sub Mat Sto Used RIF Installer . | . . . . . Robots Hacked . | . . . . . Non-combat . | . . . . . Combat . | . . . . . Robot Hacks Applied . | . . . . . Relay Couplers Released . | . . . . . Fabnet Peak Effective % . | . . . . . Robots Rewired . | . . . . . Allies Hacked . | . . . . . Hacks Repelled . | . . . . . Allies | -11 -10 -10 -8 -8 -------- Run | Yrd Mat Sub Mat Sto Total Allies 12 | . . . . 12 Largest Group 10 | . . . . 10 Highest-Rated Group 173 | . . . . 173 Highest-Rated Ally 31 | . . . . 31 Total Orders . | . . . . . Ally Attacks 81 | . . . . 81 Total Damage 1053 | . . . . 1053 Kills 11 | . . . . 11 Allies Corrupted . | . . . . . Allies Melted 1 | . . . . 1 Intel | -11 -10 -10 -8 -8 ------- Run | Yrd Mat Sub Mat Sto Active Infowar (turns) 2067 | . . 1615 336 116 Terrain 1951 | . . 1615 336 . T.N.C. 116 | . . . . 116 Robot Analysis Total . | . . . . . Derelict Logs Recovered 2 | . . 2 . . Drone Launches 14 | . . . . 14 Drone Recoveries 4 | . . . . 4 Exploration | -11 -10 -10 -8 -8 ------------- Run | Yrd Mat Sub Mat Sto Turns Passed 4755 | 62 1067 2592 377 657 Spaces Moved 2819 | 50 643 1602 206 318 Core 17 | 17 . . . . Treads 2 | . . . . 2 Legs 120 | 33 87 . . . Wheels 2680 | . 556 1602 206 316 Hover . | . . . . . Flight . | . . . . . Fastest Speed 50 | 50 100 130 105 105 Average Speed 134 | 96 127 139 136 133 Slowest Speed 320 | 120 135 175 145 320 Overloaded Moves . | . . . . . Propulsion Burnouts . | . . . . . Robots Hopped . | . . . . . Potential Cave-ins . | . . . . . Cave-ins Triggered . | . . . . . Exploration Rate (%) 47 | 3 77 84 22 53 Regions Visited 4 Branch Regions 2 Pre-discovered Areas 1 | . . 1 . . Known Exits Taken 2 | . . 1 1 . Unknown Exits Taken 2 | 1 1 . . . Scrap Searched 7 | . . 7 . . Spaces Dug . | . . . . . Terrain Destroyed 23 | . . 10 3 10 Melee . | . . . . . Projectile 5 | . . . 3 2 AOE 18 | . . 10 . 8 Terrain Rammed . | . . . . . Walls Destroyed . | . . . . . Machines Disabled . | . . . . . Actions | -11 -10 -10 -8 -8 --------- Run | Yrd Mat Sub Mat Sto Total 3292 | 61 776 1748 254 453 Wait 61 | . 13 18 3 27 Move 2815 | 49 642 1601 205 318 Hop . | . . . . . Pick Up 69 | 6 26 11 8 18 Fast Attach 11 | 6 4 . 1 . Attach 33 | . 1 5 8 19 Detach . | . . . . . Swap 30 | . 9 10 5 6 Drop 30 | . 13 8 3 6 Fire 234 | . 68 95 21 50 Melee . | . . . . . Ram 2 | . . . . 2 Kick . | . . . . . Crush 1 | . . . . 1 Escape Stasis . | . . . . . Rewire . | . . . . . Trap . | . . . . . Miscellaneous 6 | . . . . 6 Route ------- -11/Scrapyard -10/Materials (discovered 5 exits: [*Mat x2] / [*Min x2] / *Sub) -10/Subcaves (discovered 2 exits: *Mat x2) -8/Materials (discovered 3 exits: Fac x2 / *Sto) -8/Storage History --------- Turn | Location | Event 7 | -11/Scrapyard | Discovered new exit (range 15) 63 | -11/Scrapyard | Entered Materials 266 | -10/Materials | Discovered new exit (range 7) 334 | -10/Materials | Build established: Mutant 376 | -10/Materials | Discovered new exit (range 9) 566 | -10/Materials | Discovered new exit (range 13) 671 | -10/Materials | Discovered new exit (range 16) 861 | -10/Materials | Discovered new exit (range 10) 1130 | -10/Materials | Entered Subcaves 1384 | -10/Subcaves | Core integrity fell below 50% 1405 | -10/Subcaves | Learned 8 Materials zone layouts 1410 | -10/Subcaves | Identified exit to Materials 1493 | -10/Subcaves | Visited 4L-MR0's lab 1515 | -10/Subcaves | Found Meta Core 1529 | -10/Subcaves | Attached Meta Core, gained temporary slots: Propulsion, Utility, Weapon 1613 | -10/Subcaves | Shifting Twisted Machinery released Battle Rifle 1618 | -10/Subcaves | Shifting Twisted Machinery released Sub. Power Source 1805 | -10/Subcaves | A swath of the cavern ceiling suddenly collapsed 1805 | -10/Subcaves | Shifting Twisted Machinery released Sub. Laser 1820 | -10/Subcaves | Build established: Tank 2506 | -10/Subcaves | Learned location of Zion (-6) 2506 | -10/Subcaves | Met a Zionite searching for "candidates" 2976 | -10/Subcaves | Discovered exit to Materials (range 14) 3123 | -10/Subcaves | Disturbed a concealed Subdweller 3165 | -10/Subcaves | Lost 3 parts (1n1u1w) 3204 | -10/Subcaves | Visited Clippyterm 3208 | -10/Subcaves | Learned Research security intel 3208 | -10/Subcaves | Learned Factory stockpile data 3317 | -10/Subcaves | Core integrity fell below 20% 3339 | -10/Subcaves | Build established: Mutant 3624 | -10/Subcaves | Shifting Twisted Machinery released Sub. Monowheel 3643 | -10/Subcaves | Shifting Twisted Machinery released Riot Gun 3722 | -10/Subcaves | Entered Materials 3722 | -8/Materials | Evolved 4 slots: Power x1, Propulsion x1, Utility x1, Weapon x1 3723 | -8/Materials | Identified exit to Factory 3723 | -8/Materials | Identified exit to Storage 3967 | -8/Materials | Garrison activated, responded to threat 4099 | -8/Materials | Entered Storage 4111 | -8/Storage | Lost 5 parts (1p1n2u1w) 4161 | -8/Storage | Assisted by bots powering up and referring to "LRC-V3" 4283 | -8/Storage | Lost 7 allies 4389 | -8/Storage | Murdered 7 allies 4392 | -8/Storage | Lost 3 allies 4501 | -8/Storage | Build established: Tank 4555 | -8/Storage | Met a pair of Derelict thieves 4671 | -8/Storage | Core integrity fell below 50% 4680 | -8/Storage | Lost 4 parts (2n1u1w) 4742 | -8/Storage | Core integrity fell below 20% 4756 | -8/Storage | Destroyed by Y-45 Defender with Beam Rifle Last Messages --------------- 04727_ S-10 Pest destroyed. 04730_ B-36 Bruiser suffers critical hit (Burn). 04730_ B-36 Bruiser destroyed. 04732_ Hvy. Particle Cannon destroyed. 04733_ Destroyed Flight Unit. 04734_ U-05 Engineer builds a Wall. 04741_ Adv. Beam Rifle destroyed. 04741_ Slammed into Y-45 Defender. 04741_ U-05 Engineer builds a Door. 04742_ Acquired 12 matter. 04744_ Wheel destroyed. 04744_ Critical hit (Burn: +37). 04747_ Acquired 20 matter. 04748_ R-06 Scavenger collects Hammer. 04749_ R-06 Scavenger collects Lgt. Treads. 04751_ M-13 Machinist fits Backup Propulsion I on S-10 Pest. 04752_ Critical hit (Burn: +37). 04753_ R-06 Scavenger collects Lgt. Ion Engine. 04753_ Slammed into M-28 Smith. Map ----- +----------------------------------------------------+ | ????????????????????????????????????????????? | | ????????????????????????????????????????????? | | ????????????????????????????????????????????? | | ????????????????????????????????????????????? | | ????????????????????????????????????????????? | | ????????????????????????????????????????????? | | ???????????????????? ?????????????????????? | | ???????????????????? #????????????????????? | | ????? ?????????????# #????????????????????? | | ????? ?????????????# #????????????????????? | | ????? ??????#??????# #????????????????????? | | ????? #????^#??????# #????????????????????? | | ????# ##### #??????# T????????????????????? | | ????# ^+??????# #????????????????????? | | ????+ ^#??????# #????????????????????? | | ????# ^#??????# #????????????????????? | | ##### ^#??????# #????????????????????? | | ## ^#??????# ##########???????????? | | ## %##+######## # #???????????? | | # ! # # """ #???????????? | | % # # # """ #???????????? | | % %* # # # """ #???????????? | | % #% %/= /m #???????????? | | % % #! =# # s""" #???????????? | | # # # r""" #???????????? | | # ! # + @gY"r" #???????????? | | + !" # Y %[ #???????????? | | ############# #####+####???????????? | | % #???????????# #???#*#??????????????? | | % #???????????# #???# #??????????????? | | % #???????????# #???# #??????????????? | | #???????????# #???# #??????????????? | | #???????????+ #???# #??????????????? | | ### "???????# #???# #??????????????? | | + "???????# ??? +??????????????? | | ####### "???????# #???# #??????????????? | | #???????????????+ ????? ???????????????? | | #+###???????????????#+#????? ???????????????? | | #??????????????????????? ???????????????? | | #??????????????????????? ???????????????? | | " "##??????????????????????? ???????????????? | | !#???????????????????????+???????????????? | | #???????????????????????????????????????? | | !!#???????????????????????????????????????? | | ! !#???????????????????????????????????????? | | #####???????????????????????????????????????? | | ????????????????????????????????????????????? | | ????????????????????????????????????????????? | | ????????????????????????????????????????????? | | ????????????????????????????????????????????? | +----------------------------------------------------+ Best States ------------- Heat Dissipation 45 Energy Generation 26 Energy Capacity 500 Matter Stores 300 Matter Capacity 300 Sight Range 16 Terrain Scan Range 16 Terrain Scan Density 10 Armor Coverage 300 Evasion (%) 55 Recoil Reduction 2 Particle Charging 15 Authchip Count 1 Item Schematics ----------------- None Robot Schematics ------------------ None Fabricated ------------ Nothing Repaired ---------- Nothing Studied --------- Assault Cannon | -8/Materials | Hacked Field Laser | -8/Materials | Hacked Adv. Treads | -8/Materials | Hacked Com. Wheel | -8/Materials | Hacked Alien Tech Used ----------------- None Achievements -------------- None Challenges ------------ None Game ------ Seed BattleCombatCutter Manual? 0 Play Time 01:16:53 Cumulative 283.7 hours Start 2025.12.31 @ 12:16:25 End 2026.01.01 @ 12:21:05 Sessions 3 Manual Loads 0 Difficulty Rogue Special Mode None Game No. 449 Rogue 449 Adventurer 0 Explorer 0 Win Type - Total 1 Types 1/0/0/0/0/0/0/0/0/0 Lore% 65 Gallery% 63 Achievement% 31 Wizard Run 0 Options --------- Layout 1 ASCII 0 Keyboard 0 Movement Mouse Keybinds 0 Fullscreen 2 Font 24/Smallcaps Map View 50x35 Zoom Use 0% Tactical HUD 1 Map Filters NONE Filters NONE Steam 1 RUN: 4ee9fc4f-0fa5-4cb8-9f1f-18e3bb7dc0f6